fUSD/lending_fUSD_20250118
["ID","MTS","AMOUNT","RATE_DAILY","PERIOD"]
[349448642,1737187843735,-500.0,0.00019997,2]
[349448643,1737187843745,-989.46,0.00019997,2]
[349448644,1737187843755,-500.0,0.00019997,2]
[349448645,1737187843764,-500.0,0.00019997,2]
[349448646,1737187843773,-304.1,0.00019997,2]
[349448647,1737187843782,-500.0,0.00019997,2]
[349448648,1737187843794,-500.0,0.00019997,2]
[349448649,1737187843803,-782.97,0.00019997,2]
[349448650,1737187843812,-500.0,0.00019997,2]
[349448651,1737187843821,-500.0,0.00019997,2]
[349448652,1737187843831,-500.0,0.00019997,2]
[349448653,1737187843841,-500.0,0.00019997,2]
[349448654,1737187843852,-500.0,0.00019997,2]
[349448655,1737187843861,-500.0,0.00019997,2]
[349448656,1737187843871,-500.0,0.00019997,2]
[349448657,1737187843879,-783.42,0.00019997,2]
[349448658,1737187843889,-500.0,0.00019997,2]
[349448659,1737187843898,-500.0,0.00019997,2]
[349448660,1737187843907,-500.0,0.00019997,2]
[349448661,1737187843916,-500.0,0.00019997,2]
[349448662,1737187844113,-500.0,0.00019997,2]
[349448663,1737187844123,-500.0,0.00019997,2]
[349448664,1737187844132,-500.0,0.00019997,2]
[349448665,1737187844143,-500.0,0.00019997,2]
[349448666,1737187844157,-500.0,0.00019997,2]
[349448667,1737187844167,-500.0,0.00019997,2]
[349448668,1737187844176,-500.0,0.00019997,2]
[349448669,1737187844185,-500.0,0.00019997,2]
[349448670,1737187844195,-500.0,0.00019997,2]
[349448671,1737187844204,-500.0,0.00019997,2]
[349448672,1737187844213,-1721.42,0.00019997,2]
[349448673,1737187844222,-500.0,0.00019997,2]
[349448674,1737187844232,-500.0,0.00019997,2]
[349448675,1737187844243,-500.0,0.00019997,2]
[349448676,1737187844252,-500.0,0.00019997,2]
[349448677,1737187844261,-500.0,0.00019997,2]
[349448678,1737187844270,-500.0,0.00019997,2]
[349448679,1737187844279,-500.0,0.00019997,2]
[349448680,1737187844291,-172.51,0.00019997,2]
[349448681,1737187844300,-806.76,0.00019997,2]
[349448682,1737187844309,-806.76,0.00019997,2]
[349448683,1737187844318,-521.8,0.00019997,2]
[349448684,1737187844328,-500.0,0.00019997,2]
[349448685,1737187844337,-385.65593586,0.00019997,2]
[349448686,1737187844346,-500.0,0.00019997,2]
[349448687,1737187844355,-500.0,0.00019997,2]
[349448688,1737187844364,-500.0,0.00019997,2]
[349448689,1737187844373,-500.0,0.00019997,2]
[349448690,1737187844382,-500.0,0.00019997,2]
[349448691,1737187844392,-500.0,0.00019997,2]
[349448692,1737187844401,-500.0,0.00019997,2]
[349448693,1737187844410,-696.2,0.00019997,2]
[349448694,1737187844419,-696.2,0.00019997,2]
[349448695,1737187844428,-696.2,0.00019997,2]
[349448696,1737187844438,-2168.77,0.00019997,2]
[349448697,1737187844447,-500.0,0.00019997,2]
[349448698,1737187844456,-562.62,0.00019997,2]
[349448699,1737187844465,-562.62,0.00019997,2]
[349448700,1737187844474,-562.62,0.00019997,2]
[349448701,1737187844484,-500.0,0.00019997,2]
[349448702,1737187844494,-890.85,0.00019997,2]
[349448703,1737187844503,-890.85,0.00019997,2]
[349448704,1737187844512,-500.0,0.00019997,2]
[349448705,1737187844521,-500.0,0.00019997,2]
[349448706,1737187844530,-500.0,0.00019997,2]
[349448707,1737187844542,-500.0,0.00019997,2]
[349448708,1737187844553,-230.55498449,0.00019997,2]
[349448709,1737187844562,-500.0,0.00019997,2]
[349448710,1737187844571,-500.0,0.00019997,2]
[349448711,1737187844581,-2017.41,0.00019997,2]
[349448712,1737187844590,-500.0,0.00019997,2]
[349448713,1737187844600,-500.0,0.00019997,2]
[349448714,1737187844609,-500.0,0.00019997,2]
[349448715,1737187844618,-500.0,0.00019997,2]
[349448716,1737187844627,-500.0,0.00019997,2]
[349448717,1737187844637,-500.0,0.00019997,2]
[349448718,1737187844646,-500.0,0.00019997,2]
[349448719,1737187844656,-549.59212991,0.00019997,2]
[349448720,1737187844665,-500.0,0.00019997,2]
[349448721,1737187844676,-500.0,0.00019997,2]
[349448722,1737187844687,-500.0,0.00019997,2]
[349448723,1737187844696,-500.0,0.00019997,2]
[349448724,1737187844706,-500.0,0.00019997,2]
[349448725,1737187844715,-500.0,0.00019997,2]
[349448726,1737187844724,-500.0,0.00019997,2]
[349448727,1737187844734,-500.0,0.00019997,2]
[349448728,1737187844744,-673.41,0.00019997,2]
[349448729,1737187844753,-673.41,0.00019997,2]
[349448730,1737187844764,-500.0,0.00019997,2]
[349448731,1737187844773,-500.0,0.00019997,2]
[349448732,1737187844782,-500.0,0.00019997,2]
[349448733,1737187844792,-567.39,0.00019997,2]
[349448734,1737187844801,-500.0,0.00019997,2]
[349448735,1737187844810,-500.0,0.00019997,2]
[349448736,1737187844819,-500.0,0.00019997,2]
[349448737,1737187844829,-500.0,0.00019997,2]
[349448738,1737187844838,-229.14071599,0.00019997,2]
[349448739,1737187844848,-500.0,0.00019997,2]
[349448740,1737187844857,-500.0,0.00019997,2]
[349448741,1737187844866,-1308.99,0.00019997,2]
[349448742,1737187844876,-1308.99,0.00019997,2]
[349448743,1737187844885,-1308.99,0.00019997,2]
[349448744,1737187844895,-500.0,0.00019997,2]
[349448745,1737187844904,-500.0,0.00019997,2]
[349448746,1737187844914,-515.6,0.00019997,2]
[349448747,1737187844923,-500.0,0.00019997,2]
[349448748,1737187844932,-500.0,0.00019997,2]
[349448749,1737187844943,-1061.62,0.00019997,2]
[349448750,1737187844952,-1061.62,0.00019997,2]
[349448751,1737187844962,-500.0,0.00019997,2]
[349448752,1737187844972,-1061.62,0.00019997,2]
[349448753,1737187844982,-500.0,0.00019997,2]
[349448754,1737187844991,-344.89570062,0.00019997,2]
[349448755,1737187845001,-502.59145683,0.00019997,2]
[349448756,1737187845010,-506.3051338,0.00019997,2]
[349448757,1737187845019,-513.52875083,0.00019997,2]
[349448758,1737187845029,-500.0,0.00019997,2]
[349448759,1737187845039,-500.0,0.00019997,2]
[349448760,1737187845051,-500.0,0.00019997,2]
[349448761,1737187845060,-500.0,0.00019997,2]
[349448762,1737187845070,-500.0,0.00019997,2]
[349448763,1737187845079,-484.93443819,0.00019997,2]
[349448764,1737187845088,-500.0,0.00019997,2]
[349448765,1737187845098,-500.0,0.00019997,2]
[349448766,1737187845107,-500.0,0.00019997,2]
[349448767,1737187845116,-500.0,0.00019997,2]
[349448768,1737187845125,-500.0,0.00019997,2]
[349448769,1737187845134,-611.13,0.00019997,2]
[349448770,1737187845143,-611.13,0.00019997,2]
[349448771,1737187845153,-611.13,0.00019997,2]
[349448772,1737187845164,-500.0,0.00019997,2]
[349448773,1737187845173,-500.0,0.00019997,2]
[349448774,1737187845182,-500.0,0.00019997,2]
[349448775,1737187845191,-500.0,0.00019997,2]
[349448776,1737187845200,-161.65,0.00019997,2]
[349448778,1737187845210,-500.0,0.00019997,2]
[349448780,1737187845219,-500.0,0.00019997,2]
[349448782,1737187845228,-500.0,0.00019997,2]
[349448784,1737187845239,-500.0,0.00019997,2]
[349448786,1737187845248,-500.0,0.00019997,2]
[349448788,1737187845257,-500.0,0.00019997,2]
[349448790,1737187845266,-500.0,0.00019997,2]
[349448793,1737187845276,-371.56406717,0.00019997,2]
[349448795,1737187845285,-533.96404304,0.00019997,2]
[349448797,1737187845296,-500.0,0.00019997,2]
[349448798,1737187845305,-500.0,0.00019997,2]
[349448799,1737187845314,-500.0,0.00019997,2]
[349448800,1737187845323,-500.0,0.00019997,2]
[349448801,1737187845332,-500.0,0.00019997,2]
[349448802,1737187845342,-500.0,0.00019997,2]
[349448803,1737187845352,-560.82,0.00019997,2]
[349448804,1737187845362,-560.82,0.00019997,2]
[349448805,1737187845372,-560.82,0.00019997,2]
[349448806,1737187845381,-500.0,0.00019997,2]
[349448807,1737187845391,-500.0,0.00019997,2]
[349448808,1737187845401,-500.0,0.00019997,2]
[349448809,1737187845411,-500.0,0.00019997,2]
[349448810,1737187845420,-500.0,0.00019997,2]
[349448811,1737187845429,-500.0,0.00019997,2]
[349448812,1737187845439,-500.0,0.00019997,2]
[349448813,1737187845448,-500.0,0.00019997,2]
[349448814,1737187845457,-500.0,0.00019997,2]
[349448815,1737187845467,-508.58180898,0.00019997,2]
[349448816,1737187845476,-500.0,0.00019997,2]
[349448817,1737187845486,-500.0,0.00019997,2]
[349448818,1737187845495,-500.0,0.00019997,2]
[349448819,1737187845505,-500.0,0.00019997,2]
[349448820,1737187845514,-500.0,0.00019997,2]
[349448821,1737187845524,-500.0,0.00019997,2]
[349448822,1737187845533,-500.0,0.00019997,2]
[349448823,1737187845544,-919.7,0.00019997,2]
[349448824,1737187845553,-500.0,0.00019997,2]
[349448825,1737187845563,-500.0,0.00019997,2]
[349448826,1737187845572,-500.0,0.00019997,2]
[349448827,1737187845583,-500.0,0.00019997,2]
[349448828,1737187845592,-500.0,0.00019997,2]
[349448829,1737187845602,-354127.32108131,0.00019998,2]
[349448830,1737187845611,-151.0,0.00019998,2]
[349448831,1737187845621,-151.0,0.00019998,2]
[349448832,1737187845630,-151.0,0.00019998,2]
[349448833,1737187845643,-500.0,0.00019998,2]
[349448834,1737187845653,-500.0,0.00019998,2]
[349448835,1737187845663,-519.88599518,0.00019998,2]
[349448836,1737187845675,-441.61,0.00019998,2]
[349448837,1737187845685,-187.64933821,0.00019998,2]
[349448838,1737187845713,-253.96066179,0.00019998,2]
[349448839,1737187845722,-294.54075931,0.00019998,2]
[349448840,1737187845742,-147.06924069,0.00019998,2]
[349448841,1737187845752,-441.61,0.00019998,2]
[349448842,1737187845762,-500.0,0.00019998,2]
[349448843,1737187845771,-500.0,0.00019998,2]
[349448844,1737187845780,-133.09998108,0.00019998,2]
[349448845,1737187845808,-366.90001892,0.00019998,2]
[349448846,1737187845818,-500.0,0.00019998,2]
[349448847,1737187845827,-500.0,0.00019998,2]
[349448848,1737187845836,-500.0,0.00019998,2]
[349448849,1737187845845,-500.0,0.00019998,2]
[349448851,1737187845854,-500.0,0.00019998,2]
[349448853,1737187845863,-500.0,0.00019998,2]
[349448855,1737187845872,-500.0,0.00019998,2]
[349448857,1737187845883,-500.0,0.00019998,2]
[349448859,1737187845892,-500.0,0.00019998,2]
[349448861,1737187845901,-500.0,0.00019998,2]
[349448863,1737187845910,-500.0,0.00019998,2]
[349448865,1737187845919,-500.0,0.00019998,2]
[349448867,1737187845928,-500.0,0.00019998,2]
[349448869,1737187845937,-500.0,0.00019998,2]
[349448871,1737187845946,-500.0,0.00019998,2]
[349448873,1737187845955,-500.0,0.00019998,2]
[349448875,1737187845964,-500.0,0.00019998,2]
[349448877,1737187845976,-500.0,0.00019998,2]
[349448879,1737187845986,-500.0,0.00019998,2]
[349448881,1737187845995,-500.0,0.00019998,2]
[349448883,1737187846004,-500.0,0.00019998,2]
[349448886,1737187846013,-500.0,0.00019998,2]
[349448888,1737187846022,-527.0,0.00019998,2]
[349448890,1737187846031,-500.0,0.00019998,2]
[349448892,1737187846041,-500.0,0.00019998,2]
[349448894,1737187846053,-500.0,0.00019998,2]
[349448896,1737187846062,-500.0,0.00019998,2]
[349448898,1737187846072,-500.0,0.00019998,2]
[349448899,1737187846082,-500.0,0.00019998,2]
[349448900,1737187846092,-234.90451609,0.00019998,2]
[349448901,1737187846101,-411.64538252,0.00019998,2]
[349448902,1737187846110,-500.0,0.00019998,2]
[349448903,1737187846120,-500.0,0.00019998,2]
[349448904,1737187846129,-500.0,0.00019998,2]
[349448905,1737187846139,-500.0,0.00019998,2]
[349448906,1737187846148,-500.0,0.00019998,2]
[349448907,1737187846159,-500.0,0.00019998,2]
[349448908,1737187846169,-500.0,0.00019998,2]
[349448909,1737187846178,-500.0,0.00019998,2]
[349448910,1737187846187,-500.0,0.00019998,2]
[349448911,1737187846196,-500.0,0.00019998,2]
[349448912,1737187846207,-609.8199152,0.00019998,2]
[349448913,1737187846216,-656.68,0.00019998,2]
[349448914,1737187846225,-656.68,0.00019998,2]
[349448915,1737187846235,-656.68,0.00019998,2]
[349448916,1737187846245,-500.0,0.00019998,2]
[349448917,1737187846254,-500.0,0.00019998,2]
[349448918,1737187846263,-151.0,0.00019998,2]
[349448919,1737187846272,-231.270414,0.00019998,2]
[349448920,1737187846281,-500.0,0.00019998,2]
[349448921,1737187846290,-500.0,0.00019998,2]
[349448922,1737187846302,-151.0,0.00019998,2]
[349448923,1737187846311,-151.0,0.00019998,2]
[349448924,1737187846320,-157.847608,0.00019998,2]
[349448925,1737187846329,-151.0,0.00019998,2]
[349448926,1737187846338,-151.0,0.00019998,2]
[349448927,1737187846347,-151.0,0.00019998,2]
[349448928,1737187846357,-601.61,0.00019998,2]
[349448929,1737187846366,-601.61,0.00019998,2]
[349448930,1737187846378,-500.0,0.00019998,2]
[349448931,1737187846388,-500.0,0.00019998,2]
[349448932,1737187846398,-504.78605031,0.00019998,2]
[349448933,1737187846407,-590.37,0.00019998,2]
[349448934,1737187846416,-590.37,0.00019998,2]
[349448935,1737187846426,-209.41973395,0.00019998,2]
[349448936,1737187846436,-500.0,0.00019998,2]
[349448937,1737187846446,-500.0,0.00019998,2]
[349448938,1737187846455,-588.38,0.00019998,2]
[349448939,1737187846466,-500.0,0.00019998,2]
[349448940,1737187846475,-500.0,0.00019998,2]
[349448941,1737187846484,-500.0,0.00019998,2]
[349448942,1737187846493,-517.98,0.00019998,2]
[349448943,1737187846503,-500.0,0.00019998,2]
[349448944,1737187846512,-500.0,0.00019998,2]
[349448945,1737187846521,-500.0,0.00019998,2]
[349448946,1737187846529,-500.0,0.00019998,2]
[349448947,1737187846539,-342.625359,0.00019998,2]
[349448948,1737187846550,-342.625359,0.00019998,2]
[349448949,1737187846559,-342.625359,0.00019998,2]
[349448950,1737187846569,-342.625359,0.00019998,2]
[349448951,1737187846578,-875.04,0.00019998,2]
[349448952,1737187846588,-151.0,0.00019998,2]
[349448953,1737187846597,-875.04,0.00019998,2]
[349448954,1737187846606,-244.227615,0.00019998,2]
[349448955,1737187846615,-500.0,0.00019998,2]
[349448956,1737187846624,-500.0,0.00019998,2]
[349448957,1737187846634,-500.0,0.00019998,2]
[349448958,1737187846643,-500.0,0.00019998,2]
[349448959,1737187846652,-500.0,0.00019998,2]
[349448960,1737187846661,-500.0,0.00019998,2]
[349448961,1737187846671,-500.0,0.00019998,2]
[349448962,1737187846680,-500.0,0.00019998,2]
[349448963,1737187846689,-500.0,0.00019998,2]
[349448964,1737187846698,-738.67,0.00019998,2]
[349448965,1737187846707,-738.67,0.00019998,2]
[349448966,1737187846717,-738.67,0.00019998,2]
[349448967,1737187846726,-500.0,0.00019998,2]
[349448968,1737187846735,-522.44301276,0.00019998,2]
[349448969,1737187846745,-151.0,0.00019998,2]
[349448970,1737187846754,-151.0,0.00019998,2]
[349448971,1737187846763,-289.012618,0.00019998,2]
[349448972,1737187846773,-289.012618,0.00019998,2]
[349448973,1737187846782,-289.012618,0.00019998,2]
[349448974,1737187846794,-289.012618,0.00019998,2]
[349448975,1737187846803,-745.53,0.00019998,2]
[349448976,1737187846812,-745.53,0.00019998,2]
[349448977,1737187846821,-745.53,0.00019998,2]
[349448978,1737187846830,-151.0,0.00019998,2]
[349448979,1737187846839,-272.99393177,0.00019998,2]
[349448980,1737187846849,-500.0,0.00019998,2]
[349448981,1737187846858,-500.0,0.00019998,2]
[349448982,1737187846868,-500.0,0.00019998,2]
[349448983,1737187846878,-818.08,0.00019998,2]
[349448984,1737187846887,-818.08,0.00019998,2]
[349448985,1737187846896,-742.9226298,0.00019998,2]
[349448986,1737187847132,-1757.358,0.00019897,2]
[349448987,1737187847144,-215.96964201,0.000199,2]
[349448988,1737187847155,-215.96964199,0.00019969,2]
[349448989,1737187847167,-75.1573702,0.00019998,2]
[349448990,1737187847177,-500.0,0.00019998,2]
[349448991,1737187847186,-500.0,0.00019998,2]
[349448992,1737187847197,-500.0,0.00019998,2]
[349448993,1737187847207,-500.0,0.00019998,2]
[349448994,1737187847216,-500.0,0.00019998,2]
[349448995,1737187847226,-500.0,0.00019998,2]
[349448996,1737187847235,-151.0,0.00019998,2]
[349448997,1737187847244,-151.0,0.00019998,2]
[349448998,1737187847254,-290.165608,0.00019998,2]
[349448999,1737187847264,-500.0,0.00019998,2]
[349449000,1737187847273,-500.0,0.00019998,2]
[349449001,1737187847283,-500.0,0.00019998,2]
[349449002,1737187847294,-500.0,0.00019998,2]
[349449003,1737187847303,-500.0,0.00019998,2]
[349449004,1737187847312,-500.0,0.00019998,2]
[349449005,1737187847322,-200.0800848,0.00019998,2]
[349449006,1737187847332,-151.0,0.00019998,2]
[349449007,1737187847341,-151.0,0.00019998,2]
[349449008,1737187847350,-500.0,0.00019998,2]
[349449009,1737187847359,-500.0,0.00019998,2]
[349449010,1737187847368,-500.0,0.00019998,2]
[349449011,1737187847377,-500.0,0.00019998,2]
[349449012,1737187847386,-500.0,0.00019998,2]
[349449013,1737187847395,-500.0,0.00019998,2]
[349449014,1737187847405,-500.0,0.00019998,2]
[349449015,1737187847414,-500.0,0.00019998,2]
[349449016,1737187847423,-500.0,0.00019998,2]
[349449017,1737187847432,-500.0,0.00019998,2]
[349449018,1737187847442,-500.0,0.00019998,2]
[349449019,1737187847451,-604.08913556,0.00019998,2]
[349449020,1737187847460,-500.0,0.00019998,2]
[349449021,1737187847470,-500.0,0.00019998,2]
[349449022,1737187847479,-500.0,0.00019998,2]
[349449023,1737187847487,-500.0,0.00019998,2]
[349449024,1737187847497,-500.0,0.00019998,2]
[349449025,1737187847507,-500.0,0.00019998,2]
[349449026,1737187847515,-500.0,0.00019998,2]
[349449027,1737187847525,-500.0,0.00019998,2]
[349449028,1737187847535,-500.0,0.00019998,2]
[349449029,1737187847546,-500.0,0.00019998,2]
[349449030,1737187847556,-151.0,0.00019998,2]
[349449031,1737187847567,-151.0,0.00019998,2]
[349449032,1737187847577,-1143.32,0.00019998,2]
[349449033,1737187847587,-1143.32,0.00019998,2]
[349449034,1737187847596,-1143.32,0.00019998,2]
[349449035,1737187847606,-500.0,0.00019998,2]
[349449036,1737187847615,-500.0,0.00019998,2]
[349449037,1737187847624,-989.46,0.00019998,2]
[349449038,1737187847633,-989.46,0.00019998,2]
[349449039,1737187847643,-989.46,0.00019998,2]
[349449040,1737187847653,-500.0,0.00019998,2]
[349449041,1737187847663,-492.17344108,0.00019998,2]
[349449042,1737187847671,-500.0,0.00019998,2]
[349449043,1737187847681,-500.0,0.00019998,2]
[349449044,1737187847692,-500.0,0.00019998,2]
[349449045,1737187847702,-782.97,0.00019998,2]
[349449046,1737187847711,-782.97,0.00019998,2]
[349449047,1737187847721,-782.97,0.00019998,2]
[349449048,1737187847731,-500.0,0.00019998,2]
[349449049,1737187847740,-500.0,0.00019998,2]
[349449050,1737187847750,-500.0,0.00019998,2]
[349449051,1737187847760,-500.0,0.00019998,2]
[349449052,1737187847770,-500.0,0.00019998,2]
[349449053,1737187847780,-500.0,0.00019998,2]
[349449054,1737187847789,-500.0,0.00019998,2]
[349449055,1737187847802,-500.0,0.00019998,2]
[349449056,1737187847811,-500.0,0.00019998,2]
[349449057,1737187847821,-500.0,0.00019998,2]
[349449058,1737187847831,-783.42,0.00019998,2]
[349449059,1737187847840,-783.42,0.00019998,2]
[349449060,1737187847850,-783.42,0.00019998,2]
[349449061,1737187847859,-500.0,0.00019998,2]
[349449062,1737187847868,-500.0,0.00019998,2]
[349449063,1737187847877,-500.0,0.00019998,2]
[349449064,1737187847886,-500.0,0.00019998,2]
[349449065,1737187847895,-500.0,0.00019998,2]
[349449066,1737187847904,-500.0,0.00019998,2]
[349449067,1737187847914,-500.0,0.00019998,2]
[349449068,1737187847923,-500.0,0.00019998,2]
[349449069,1737187847932,-500.0,0.00019998,2]
[349449070,1737187847941,-500.0,0.00019998,2]
[349449071,1737187847951,-500.0,0.00019998,2]
[349449072,1737187847960,-500.0,0.00019998,2]
[349449073,1737187847971,-152.29012,0.00019998,2]
[349449074,1737187847980,-500.0,0.00019998,2]
[349449075,1737187847991,-500.0,0.00019998,2]
[349449076,1737187848000,-500.0,0.00019998,2]
[349449077,1737187848166,-500.0,0.00019998,2]
[349449078,1737187848177,-500.0,0.00019998,2]
[349449079,1737187848186,-500.0,0.00019998,2]
[349449080,1737187848198,-500.0,0.00019998,2]
[349449081,1737187848207,-500.0,0.00019998,2]
[349449082,1737187848217,-500.0,0.00019998,2]
[349449083,1737187848227,-113.23695635,0.00019998,2]
[349449084,1737187848257,-696.19015804,0.00019998,2]
[349449085,1737187848271,-911.99288561,0.00019998,2]
[349449086,1737187848281,-389.05670823,0.00019998,2]
[349449087,1737187848292,-110.94329177,0.00019998,2]
[349449088,1737187848305,-1193.31121993,0.00019998,2]
[349449089,1737187848316,-528.10878007,0.00019998,2]
[349449090,1737187848324,-577.91325121,0.00019998,2]
[349449091,1737187848334,-446.85207547,0.00019998,2]
[349449092,1737187848346,-530.0000008,0.00019998,2]
[349449093,1737187890727,150.0,0.00022319,120]
[349449108,1737188444603,150.0,0.00012053,2]
[349449109,1737188708285,550.0,0.00012,2]
[349449110,1737188708311,700.0,0.00012,2]
[349449111,1737188708338,81161.28144974,0.00012,2]
[349449112,1737188723906,153.68,0.00010137,2]
[349449114,1737188738143,-313.21594702,0.00016772,2]
[349449118,1737188754745,1346.88106421,0.0002,60]
[349449119,1737188826085,-482.93405298,0.00016772,2]
[349449120,1737188826109,-464.02,0.00018559,2]
[349449121,1737188826129,-482.01641938,0.00018619,2]
[349449122,1737188826150,-231.49235744,0.0001869,2]
[349449123,1737188830128,-587.43764256,0.0001869,2]
[349449124,1737188830149,-46.29100009,0.0001869,2]
[349449126,1737188843095,-308.82305,0.00018466,2]
[349449127,1737188843118,-435.72541929,0.0001869,2]
[349449128,1737188843138,-250.0,0.00018719,2]
[349449129,1737188843158,-250.0,0.00018787,2]
[349449130,1737188843179,-527.23086707,0.00018791,2]
[349449131,1737188882451,84000.0,0.0001,2]
[349449132,1737188882479,149727.51320199,0.0001,2]
[349449158,1737188945099,-544.6056,0.00018,2]
[349449159,1737188950214,-1386.75117733,0.00018,2]
[349449170,1737188967123,-37.0321816,0.00018,2]
[349449171,1737188974081,-250.0,0.00018629,2]
[349449172,1737188974106,-165.6949,0.00018692,2]
[349449173,1737188974129,-5086.19505544,0.00018791,2]
[349449197,1737189031697,-359.48,0.00018613,2]
[349449198,1737189031708,-620.804745,0.00018791,2]
[349449199,1737189031722,-796.466987,0.00018791,2]
[349449200,1737189031753,-3181.46234549,0.00018791,2]
[349449201,1737189031763,-172.64,0.00018846,2]
[349449202,1737189031772,-1000.0,0.00018855,2]
[349449203,1737189031782,-192.85105252,0.000189,2]
[349449204,1737189035591,-1198.14894748,0.000189,2]
[349449205,1737189035600,-1400.0,0.000189,6]
[349449206,1737189035610,-600.0,0.00019,2]
[349449207,1737189035619,-157.76,0.00019,2]
[349449208,1737189035629,-2800.0,0.00019,6]
[349449209,1737189035639,-796.15,0.00019036,2]
[349449210,1737189035648,-311.55,0.00019037,2]
[349449211,1737189035658,-4300.0,0.000191,6]
[349449212,1737189035667,-984.0,0.00019114,2]
[349449213,1737189035680,-5700.0,0.000192,7]
[349449214,1737189035689,-7200.0,0.000193,7]
[349449215,1737189035698,-1400.0,0.000194,7]
[349449217,1737189035708,-1400.0,0.000195,7]
[349449219,1737189035717,-1100.0,0.00019568,2]
[349449221,1737189035727,-500.0,0.00019568,2]
[349449223,1737189035737,-175.1526307,0.00019599,2]
[349449225,1737189035746,-406.399,0.000196,2]
[349449226,1737189035755,-1400.0,0.000196,7]
[349449227,1737189035764,-1740.06237251,0.000196,2]
[349449228,1737189035773,-1740.06237243,0.00019622,2]
[349449229,1737189035784,-1740.06237243,0.00019644,2]
[349449230,1737189035794,-1740.06237243,0.00019666,2]
[349449231,1737189035803,-501.14248168,0.00019673,2]
[349449232,1737189035812,-1740.06237243,0.00019688,2]
[349449233,1737189035821,-92036.80000005,0.00019699,2]
[349449234,1737189035830,-93661.84443308,0.00019699,2]
[349449235,1737189035840,-1891.9267,0.000197,2]
[349449236,1737189035849,-1284.0,0.000197,2]
[349449237,1737189035859,-12324.79797543,0.000197,2]
[349449238,1737189035872,-34697.91474228,0.000197,2]
[349449239,1737189035884,-1705.45051838,0.000197,2]
[349449240,1737189035900,-308.35548,0.000197,2]
[349449244,1737189037667,-33051.18838391,0.000197,2]
[349449245,1737189037679,-1000.0,0.000197,2]
[349449246,1737189037691,-1400.0,0.000197,7]
[349449247,1737189037703,-1740.06237243,0.00019711,2]
[349449248,1737189037714,-1000.0,0.00019726,14]
[349449249,1737189037725,-1740.06237243,0.00019733,2]
[349449250,1737189037740,-1740.06237243,0.00019755,2]
[349449251,1737189037754,-150.0,0.00019768,2]
[349449252,1737189037765,-150.0,0.00019774,2]
[349449253,1737189037775,-1740.06237243,0.00019777,2]
[349449254,1737189037786,-150.0,0.00019791,2]
[349449255,1737189037799,-150.0,0.00019794,2]
[349449256,1737189037811,-150.0,0.00019797,2]
[349449257,1737189037822,-500.0,0.00019797,2]
[349449258,1737189037833,-500.0,0.00019797,2]
[349449259,1737189037845,-500.0,0.00019797,2]
[349449260,1737189037859,-500.0,0.00019797,2]
[349449261,1737189037871,-500.0,0.00019797,2]
[349449262,1737189037883,-528.39,0.00019797,2]